Cogmind - Beta 16 @@@ ROGUE MODE // 2025.11.14 @ 02:28:36 Player: Scringis Result: Destroyed by Y-45 Defender with Heavy Assault Rifle Performance ------------- Evolutions (0) 0 Regions Visited (3) 600 Robots Destroyed (30) 150 Value Destroyed (864) 864 Prototype IDs (12) 240 Alien Tech Used (0) 0 Bonus (0) 0 TOTAL SCORE: 1854 Bonus ------- None Cogmind --------- Core Integrity 0/250 Matter 257/300 Energy 100/100 System Corruption 0% Temperature Cool (0) Movement Treading (225) Ox1 Location -8/Recycling Parts ------- > --- POWER (1) -------- (None) > --- PROPULSION (2) --- Advanced Treads > --- UTILITY (2) ------ Large Storage Unit Improved Targeting Computer > --- WEAPON (2) ------- Assault Rifle Barrage Gun > --- INVENTORY (15) --- Large Storage Unit Terrain Scanner Gun Armor Heavy EM Pulse Gun Light Assault Rifle Battle Cannon Grenade Launcher Peak State ------------ > --- POWER ------------ Light Ion Engine > --- PROPULSION ------- Light Treads > --- UTILITY ---------- Large Storage Unit Improved Targeting Computer > --- WEAPON ----------- Subdweller Machine Gun Barrage Gun > --- INVENTORY -------- Large Storage Unit Terrain Scanner Improved Targeting Computer Gun Armor Heavy EM Pulse Gun Assault Rifle Light Assault Rifle Battle Cannon Grenade Launcher [Rating: 12] Favorites ----------- Power Light Ion Engine Engine Light Ion Engine Propulsion Light Treads Treads Light Treads Utility Large Storage Unit Storage Large Storage Unit Processor Improved Targeting Computer Protection Light Armor Plating Weapon Subdweller Machine Gun Energy Gun Heavy EM Pulse Gun Ballistic Gun Subdweller Machine Gun Launcher Grenade Launcher Build | -11 -10 -10 -8 ------- Run | Yrd Mat Sub Rec Slots Evolved . | . . . . Power . | . . . . Propulsion . | . . . . Utility . | . . . . Weapon . | . . . . Parts Attached 19 | 6 5 7 1 Power 2 | 1 1 . . Engine 2 | 1 1 . . Core . | . . . . Reactor . | . . . . Propulsion 4 | 2 . 1 1 Treads 4 | 2 . 1 1 Leg . | . . . . Wheel . | . . . . Hover . | . . . . Flight . | . . . . Utility 5 | 1 2 2 . Device . | . . . . Storage 2 | 1 1 . . Processor 2 | . . 2 . Hackware . | . . . . Protection 1 | . 1 . . Artifact . | . . . . Weapon 8 | 2 2 4 . Energy Gun 2 | . 2 . . Energy Cannon . | . . . . Ballistic Gun 5 | 2 . 3 . Ballistic Cannon . | . . . . Launcher 1 | . . 1 . Special Weapon . | . . . . Impact Weapon . | . . . . Slashing Weapon . | . . . . Piercing Weapon . | . . . . Special Melee Weapon . | . . . . Unidentified Prototypes . | . . . . Parts Lost 10 | . 1 9 . Power 2 | . 1 1 . Propulsion 3 | . . 3 . Utility 2 | . . 2 . Weapon 3 | . . 3 . Highest Loss Streak 3 | . 1 3 . To Critical Strikes . | . . . . Average Backups 8 | 1 7 8 7 Power . | . . . . Propulsion . | . . . . Utility 3 | . 3 3 3 Weapon 4 | . 2 5 4 Tool/Special . | . . . . Unused Backups 8 | . 3 . 5 Power . | . . . . Propulsion . | . . . . Utility 5 | . 2 . 3 Weapon 3 | . 1 . 2 Tool/Special . | . . . . Average Slot Usage (%) 80 | . 84 84 58 Engine 10 | . 13 10 . Treads 17 | . 28 17 1 Storage 14 | . 14 14 14 Processor 9 | . . 11 14 Energy Gun 3 | . 13 . . Ballistic Gun 24 | . 14 26 28 Peak Build Rating 12 | 6 9 12 11 Average Rating 9 | 4 7 10 8 On Entrance 5 | . 6 9 6 Avg Prop Armor Cover (%) . | . . . . Naked Turns . | . . . . Heaviest Build 33 | 13 31 33 25 Greatest Support 40 | 40 40 40 22 Greatest Overweight (x) 8 | . . 8 8 Average Overweight (x) . | . . . 6 Largest Inventory Capacity 15 | 8 15 15 15 Average Capacity 14 | 6 13 15 15 Most Carried 10 | 3 9 10 8 Average Carried 8 | 1 7 8 7 Final Capacity 15 | 8 15 15 15 Final Carried 8 | 1 8 7 7 Class Distribution -------------------- 100% | Mutant Dominant Class ---------------- Mutant | -10/Materials Mutant | -10/Subcaves Mutant | -8/Recycling Resources | -11 -10 -10 -8 ----------- Run | Yrd Mat Sub Rec Matter Collected 844 | 183 216 286 159 Remotely . | . . . . Salvage Created 1082 | . 604 478 . Parts 61 | . 34 27 . Haulers Intercepted 1 | . 1 . . Recyclers Shooed 1 | . 1 . . Parts Field Recycled . | . . . . Retrieved Matter . | . . . . Parts Self-Destructed 14 | . . 14 . Prevented . | . . . . Parts Restored . | . . . . Kills | -11 -10 -10 -8 ------- Run | Yrd Mat Sub Rec Combat Hostiles Destroyed 26 | . 12 14 . Guns 25 | . 11 14 . AOE 1 | . 1 . . Classes Destroyed 6 | . 4 2 . Hauler 1 | . 1 . . Recycler 1 | . 1 . . Turret 2 | . . 2 . Swarmer 7 | . 3 4 . Grunt 10 | . 9 1 . Subdweller 9 | . . 9 . Best Kill Streak 6 | . 6 4 . Combat Bots Only 6 | . 6 4 . Max Kills in Single Turn 1 | . 1 1 . Gunslinging . | . . . . Exploded 1 | . 1 . . Melee . | . . . . Uniques/NPCs Destroyed . | . . . . Combat | -11 -10 -10 -8 -------- Run | Yrd Mat Sub Rec Hostile Shots Fired 156 | . 46 108 2 Missed 47 | . 10 36 1 Hits 109 | . 36 72 1 Projectile 109 | . 36 72 1 Critical Strikes 1 | . . 1 . Damage Taken 1453 | . 393 1043 17 Core 253 | . 83 153 17 Absorbed by Shields . | . . . . Core Remaining (%) 100 | 100 . . . Volleys Fired 108 | . 40 67 1 Largest 2 | . 2 2 2 Hottest 75 | . 65 75 48 Shots Fired 202 | . 80 120 2 Gun 193 | . 80 111 2 Cannon . | . . . . Launcher 9 | . . 9 . Special . | . . . . Kinetic 152 | . 40 110 2 Thermal . | . . . . Explosive 9 | . . 9 . Electromagnetic 41 | . 40 1 . Robot Hit Streak 16 | . 6 16 3 Robot Miss Streak 3 | . 3 3 . Penetration Max . | . . . . Secondary Targets 3 | . 1 2 . Max Gunslinging Chain 1 | . 1 1 . Shots Hit Robots 117 | . 47 68 2 Core Hits 50 | . 19 30 1 Critical Kills 2 | . . 2 . Critical Parts Destroyed 2 | . . 2 . Critical Strikes 4 | . . 4 . Destroy 4 | . . 4 . Melee Attacks . | . . . . Impact . | . . . . Slashing . | . . . . Piercing . | . . . . Sneak Attacks . | . . . . Combat Hostiles . | . . . . Follow-up Attacks . | . . . . Damage Inflicted 2201 | . 704 1468 29 Guns 1921 | . 641 1251 29 Cannons . | . . . . Explosions 272 | . 55 217 . Melee . | . . . . Ramming 8 | . 8 . . Kinetic 1542 | . 276 1237 29 Thermal 55 | . 55 . . Explosive 217 | . . 217 . Electromagnetic 379 | . 365 14 . Impact . | . . . . Slashing . | . . . . Piercing . | . . . . Highest Corruption . | . . . . Average Corruption . | . . . . Corruption Purged . | . . . . Corruption Blocked . | . . . . Overload Shots . | . . . . Overflow Damage . | . . . . Projectiles . | . . . . Explosions . | . . . . Melee . | . . . . Knockbacks . | . . . . Impact . | . . . . Kinetic . | . . . . Secondary . | . . . . Self-Inflicted Damage 26 | . . 26 . Shots 1 | . . 1 . Rammed 5 | . 5 . . Targets Rammed 5 | . 5 . . Kicked . | . . . . Crushed . | . . . . Highest Temperature 62 | . 62 . . Average Temperature 21 | . 21 . . Received Heat Transfer 252 | . 150 102 . Siege Activations . | . . . . Martial Activations . | . . . . Shielding Activations . | . . . . Robots Disrupted . | . . . . Combat Hostiles . | . . . . Robots Corrupted . | . . . . Combat Hostiles . | . . . . Parts Fried 1 | . 1 . . Impact Corruptions . | . . . . Robots Melted . | . . . . Combat Hostiles . | . . . . Parts Melted . | . . . . Heat Transferred 50 | . 50 . . Parts Sabotaged . | . . . . Parts Stolen . | . . . . Parts Stripped . | . . . . Power Chain Reactions 1 | . 1 . . Alert | -11 -10 -10 -8 ------- Run | Yrd Mat Sub Rec Maximum Alert Level . | . . . . Low Security (%) 100 | 100 100 . 100 Level 1 . | . . . . Level 2 . | . . . . Level 3 . | . . . . Level 4 . | . . . . Level 5 . | . . . . High Security . | . . . . Max Security . | . . . . Peak Influence 145 | . 133 . 145 Initial 145 | . . . 145 Average 32 | . 36 . 29 Influence Increases 696 | . 346 350 . Destroy 0b10 Robot/C 380 | . 240 140 . Destroy 0b10 Robot/NC 10 | . 10 . . Destroy Leader 62 | . 62 . . Destroy Structure 4 | . 4 . . Lose Combat Pursuer 240 | . 30 210 . Influence Decreases 696 | . 331 61 304 Entered New Map 167 | . . 8 159 Time Decay 499 | . 321 33 145 Lost Part 30 | . 10 20 . Squads Dispatched 4 | . 4 . . Investigation 2 | . 2 . . Extermination . | . . . . Reinforcement 2 | . 2 . . Assault . | . . . . Garrison . | . . . . Intercept . | . . . . Searches Triggered . | . . . . Construction Impeded . | . . . . Haulers Reinforced . | . . . . Active Scanning Responses . | . . . . Cargo Convoy Interrupts . | . . . . Stealth | -11 -10 -10 -8 --------- Run | Yrd Mat Sub Rec Distress Signals 1 | . 1 . . Communications Jammed . | . . . . Distress Signals . | . . . . Times Spotted 42 | . 24 17 1 Peak Tracking Total 5 | . 5 5 . Tactical Retreats 5 | . 2 3 . Traps | -11 -10 -10 -8 ------- Run | Yrd Mat Sub Rec Traps Triggered 3 | . 2 1 . Indirectly . | . . . . Trap Hack Attempts . | . . . . Triggered . | . . . . Disarmed . | . . . . Reprogrammed . | . . . . Reused . | . . . . Traps Extracted . | . . . . Installed . | . . . . Triggered . | . . . . Machines | -11 -10 -10 -8 ---------- Run | Yrd Mat Sub Rec Machines Disabled 4 | . . 4 . Max in Single Turn 2 | . . 2 . Machines Repaired . | . . . . Machines Dismantled . | . . . . Machines Sabotaged . | . . . . Overloaded Fab Kills . | . . . . Hacking | -11 -10 -10 -8 --------- Run | Yrd Mat Sub Rec Machines Accessed 1 | . . 1 . Terminals . | . . . . Fabricators . | . . . . Repair Stations . | . . . . Recycling Units . | . . . . Scanalyzers . | . . . . Garrison Access . | . . . . Total Hacks 9 | . . 9 . Successful 9 | . . 9 . Failed . | . . . . Catastrophic . | . . . . Database Lockouts . | . . . . Manual . | . . . . Terminals . | . . . . Fabricators . | . . . . Repair Stations . | . . . . Recycling Units . | . . . . Scanalyzers . | . . . . Garrison Access . | . . . . Terminal Hacks 9 | . . 9 . Record 8 | . . 8 . Proto ID Catalog 1 | . . 1 . Fabricator Hacks . | . . . . Repair Station Hacks . | . . . . Recycling Unit Hacks . | . . . . Scanalyzer . | . . . . Garrison Access Hacks . | . . . . Unauthorized Hacks . | . . . . Terminals . | . . . . Fabricators . | . . . . Repair Stations . | . . . . Recycling Units . | . . . . Scanalyzers . | . . . . Garrison Access . | . . . . Data Cores Recovered . | . . . . Used . | . . . . Hacking Detections . | . . . . Full Trace Events . | . . . . Feedback Events . | . . . . Feedback Blocked . | . . . . Robot Schematics Acquired . | . . . . Robots Built . | . . . . Authchips . | . . . . Time . | . . . . Total Robot Build Rating . | . . . . Part Schematics Acquired . | . . . . Parts Built . | . . . . Authchips . | . . . . Time . | . . . . Total Part Build Rating . | . . . . Part Studies Acquired . | . . . . Parts Repaired . | . . . . Time . | . . . . Parts Recycled . | . . . . Recycled Matter . | . . . . Retrieved Matter . | . . . . Retrieved Components . | . . . . Parts Scanalyzed . | . . . . Part Schematics Acquired . | . . . . Parts Damaged . | . . . . Bothacking | -11 -10 -10 -8 ------------ Run | Yrd Mat Sub Rec Used RIF Installer . | . . . . Robots Hacked . | . . . . Non-combat . | . . . . Combat . | . . . . Robot Hacks Applied . | . . . . Relay Couplers Released . | . . . . Fabnet Peak Effective % . | . . . . Robots Rewired . | . . . . Allies Hacked . | . . . . Hacks Repelled . | . . . . Allies | -11 -10 -10 -8 -------- Run | Yrd Mat Sub Rec Total Allies . | . . . . Largest Group . | . . . . Highest-Rated Group . | . . . . Highest-Rated Ally . | . . . . Total Orders . | . . . . Ally Attacks . | . . . . Total Damage . | . . . . Kills . | . . . . Allies Corrupted . | . . . . Allies Melted . | . . . . Intel | -11 -10 -10 -8 ------- Run | Yrd Mat Sub Rec Active Infowar (turns) . | . . . . Robot Analysis Total . | . . . . Derelict Logs Recovered 2 | . . 2 . Drone Launches . | . . . . Drone Recoveries . | . . . . Exploration | -11 -10 -10 -8 ------------- Run | Yrd Mat Sub Rec Turns Passed 5856 | 83 1233 3770 770 Spaces Moved 2508 | 47 674 1604 183 Core 174 | 4 . 14 156 Treads 2334 | 43 674 1590 27 Legs . | . . . . Wheels . | . . . . Hover . | . . . . Flight . | . . . . Fastest Speed 50 | 50 160 160 225 Average Speed 215 | 150 160 218 416 Slowest Speed 450 | 160 160 450 450 Overloaded Moves . | . . . . Propulsion Burnouts . | . . . . Robots Hopped . | . . . . Potential Cave-ins . | . . . . Cave-ins Triggered . | . . . . Exploration Rate (%) 54 | 4 98 78 38 Regions Visited 3 Branch Regions 2 Pre-discovered Areas 1 | . . 1 . Known Exits Taken . | . . . . Unknown Exits Taken 3 | 1 1 1 . Scrap Searched 1 | . . 1 . Spaces Dug . | . . . . Terrain Destroyed 24 | . 3 21 . Melee . | . . . . Projectile . | . . . . AOE 24 | . 3 21 . Terrain Rammed . | . . . . Walls Destroyed . | . . . . Machines Disabled . | . . . . Actions | -11 -10 -10 -8 --------- Run | Yrd Mat Sub Rec Total 2756 | 59 748 1760 189 Wait 83 | . 4 77 2 Move 2505 | 46 673 1603 183 Hop . | . . . . Pick Up 28 | 7 15 5 1 Fast Attach . | . . . . Attach 16 | 6 3 6 1 Detach . | . . . . Swap 5 | . 2 2 1 Drop 6 | . 6 . . Fire 108 | . 40 67 1 Melee . | . . . . Ram . | . . . . Kick . | . . . . Crush 5 | . 5 . . Escape Stasis . | . . . . Rewire . | . . . . Trap . | . . . . Miscellaneous . | . . . . Route ------- -11/Scrapyard -10/Materials (discovered 6 exits: [*Mat x3] / [*Min x2] / *Sub) -10/Subcaves (discovered 2 exits: [*Mat] / [*Rec]) -8/Recycling History --------- Turn | Location | Event 20 | -11/Scrapyard | Discovered new exit (range 14) 84 | -11/Scrapyard | Entered Materials 217 | -10/Materials | Discovered new exit (range 13) 314 | -10/Materials | Build established: Mutant 482 | -10/Materials | Discovered new exit (range 12) 689 | -10/Materials | Discovered new exit (range 6) 777 | -10/Materials | Discovered new exit (range 3) 921 | -10/Materials | Discovered new exit (range 16) 1302 | -10/Materials | Discovered new exit (range 11) 1317 | -10/Materials | Entered Subcaves 1318 | -10/Subcaves | Approached by a straggling Scientist 1383 | -10/Subcaves | Shifting Twisted Machinery released Battle Rifle 1385 | -10/Subcaves | Shifting Twisted Machinery released Sub. Machine Gun 1432 | -10/Subcaves | Discovered new exit (range 7) 1506 | -10/Subcaves | Disturbed a concealed Subdweller 1686 | -10/Subcaves | Ambushed by angry Subdweller bent on revenge 1830 | -10/Subcaves | A swath of the cavern ceiling suddenly collapsed 1963 | -10/Subcaves | A swath of the cavern ceiling suddenly collapsed 2005 | -10/Subcaves | Shifting Twisted Machinery released Barrage Gun 2156 | -10/Subcaves | Ambushed by Subdwellers from Twisted Machinery 2881 | -10/Subcaves | Core integrity fell below 50% 2905 | -10/Subcaves | Visited 4L-MR0's lab 2928 | -10/Subcaves | Found Gun Armor 4988 | -10/Subcaves | Core integrity fell below 20% 5023 | -10/Subcaves | Discovered new exit (range 13) 5030 | -10/Subcaves | Lost 3 parts (1n1u1w) 5087 | -10/Subcaves | Entered Recycling 5857 | -8/Recycling | Destroyed by Y-45 Defender with Heavy Assault Rifle Last Messages --------------- repair. 04991_ Flight Unit fries itself beyond repair. 04992_ S-10 Pest destroyed. 04992_ Switching to secondary target: S-10 Pest. 04997_ Lgt. Assault Rifle fries itself beyond repair. 04999_ Imp. Targeting Computer destroyed. 05002_ Flight Unit fries itself beyond repair. 05004_ S-10 Pest destroyed. 05007_ Subatomizers dissect the Flight Unit. 05019_ Flight Unit fries itself beyond repair. 05023_ EXIT=FOUND 05036_ Autobeam Turret destroyed. 05073_ The unstable cave ceiling collapses. LOCATION=UNKNOWN GOAL=ESCAPE 05522_ Acquired 89 matter. 05793_ Acquired Adv. Treads. 05806_ Acquired 70 matter. 05856_ Y-45 Defender springs to life. Map ----- +----------------------------------------------------+ | ?????????????????????????????????????????????????? | | ?????????????????????????????????????????????????? | | ?????????????????????????????????????????????????? | | ?????????????????????????????????????????????????? | | ?????????????????????????????????????????????????? | | ?????????????????????????????????????????????????? | | ?????????????????????????????????????????????????? | | ?????????????????????????????????????????????????? | | ?????????????????????????????????????????????????? | | ?????????????????????????????????????????????????? | | ?????????????????????????????????????????????????? | | ?????????????????????????????????????????????????? | | ?????????????????????????????????????????????????? | | ?????????????????????????????????????????????????? | | ?????????????????????????????????????????????????? | | ?????????????????????????????????????????????????? | | ?????????????????????#+#####?????????????????????? | | ????????????????????? #?????????????????????? | | ?????????????????????? #?????????????????????? | | ??????????????????????? ?###?????????????????? | | ?????????###+###???????# Y### #######???????????? | | ?????????# ???????# # #???????????? | | ?????????# #??????# # #???????????? | | ?????????# #??????# # #???????????? | | ?????????# #??????# # #???????????? | | ?????????# #??????# @ + #???????????? | | ?????????# #??????# # #???????????? | | ?????????# #??????# # #???????????? | | ?????????# ??????# # #???????????? | | ?????????# #??????# #####+#####???????????? | | ?????????# #??????# #???# #???????????????? | | ?????????# #????### #???# ######??????????? | | ?????????# #????#!! #???# #= #??????????? | | ?????????# #????# ! ##### #= #??????????? | | ?????????##+##+##????# + !#??????????? | | ????#?????# #?????### # #??????????? | | ???? ?????# ######### #! #??????????? | | ##?? ?????# + #??????????? | | #?? ?????# #######! #??????????? | | +?? ?????# #?????# ! #??????????? | | ### #????# #############+########] #??????????? | | "## #????# #??????# # #??????????? | | T## #????# #??????# ## #??????????? | | "## #????# #??????# ## [!]#??????????? | | ???# #????# #??????# ## ! #??????????? | | ???# #?####+######?# #######??????????? | | #?# #?# #?# #????????????????? | | #?# ### ]] #?# #????????????????? | | #?# + ] #?# #????????????????? | | #?# ###% #?# #????????????????? | +----------------------------------------------------+ Best States ------------- Heat Dissipation 25 Energy Generation 10 Energy Capacity 250 Matter Stores 300 Matter Capacity 300 Sight Range 16 Terrain Scan Density 10 Armor Coverage 150 Evasion (%) 40 Targeting Accuracy 6 Recoil Reduction 2 Item Schematics ----------------- None Robot Schematics ------------------ None Fabricated ------------ Nothing Repaired ---------- Nothing Studied --------- None Alien Tech Used ----------------- None Achievements -------------- None Challenges ------------ None Game ------ Seed SigixRapidRouter Manual? 0 Play Time 00:16:23 Cumulative 45.7 hours Start 2025.11.14 @ 02:12:45 End 2025.11.14 @ 02:28:36 Sessions 1 Manual Loads 0 Difficulty Rogue Special Mode None Game No. 126 Rogue 126 Adventurer 0 Explorer 0 Win Type - Total 0 Types 0/0/0/0/0/0/0/0/0/0 Lore% 25 Gallery% 30 Achievement% 25 Wizard Run 0 Options --------- Layout 1 ASCII 0 Keyboard 0 Movement Numpad Keybinds 0 Fullscreen 2 Font 24/Smallcaps Map View 50x35 Zoom Use 0% Tactical HUD 1 Map Filters NONE Filters NONE Steam 1 RUN: 02e4a955-b37b-41c7-8493-e7389df84094